[Event "32nd NATO Chess Championship"]
[Site "Tartu, Estonia"]
[Date "2022.06.30"]
[Round "5.8"]
[White "Tikerpuu, Mati"]
[Black "Nikomanis, Andreas"]
[Result "0-1"]
[TimeControl "90 min + 30 sec increment from move one"]
[WhiteFideId "4505905"]
[BlackFideId "4213831"]
[WhiteElo "1819"]
[BlackElo "2068"]

1. b4 {[%clk 01:30:56]} {[%emt 00:00:04]} c6 {[%clk 01:30:54]} {[%emt
00:00:07]} 2. Bb2 {[%clk 01:31:22]} {[%emt 00:00:04]} a5 {[%clk 01:31:17]}
{[%emt 00:00:06]} 3. b5 {[%clk 01:31:46]} {[%emt 00:00:07]} cxb5 {[%clk
01:30:41]} {[%emt 00:01:05]} 4. e4 {[%clk 01:32:09]} {[%emt 00:00:06]} b4
{[%clk 01:29:58]} {[%emt 00:01:14]} 5. a3 {[%clk 01:32:21]} {[%emt 00:00:19]}
Nf6 {[%clk 01:29:27]} {[%emt 00:01:00]} 6. e5 {[%clk 01:28:14]} {[%emt
00:04:38]} Nd5 {[%clk 01:28:58]} {[%emt 00:00:58]} 7. c4 {[%clk 01:25:55]}
{[%emt 00:02:50]} bxc3 {[%clk 01:28:29]} {[%emt 00:00:59]} 8. Nxc3 {[%clk
01:26:19]} {[%emt 00:00:06]} Nxc3 {[%clk 01:28:36]} {[%emt 00:00:23]} 9. Bxc3
{[%clk 01:26:38]} {[%emt 00:00:11]} Nc6 {[%clk 01:28:56]} {[%emt 00:00:09]} 10.
Bc4 {[%clk 01:24:34]} {[%emt 00:02:35]} e6 {[%clk 01:25:13]} {[%emt 00:04:13]}
11. Nf3 {[%clk 01:20:48]} {[%emt 00:04:17]} b6 {[%clk 01:17:33]} {[%emt
00:08:09]} 12. O-O {[%clk 01:17:39]} {[%emt 00:03:39]} Ba6 {[%clk 01:13:40]}
{[%emt 00:04:23]} 13. Qe2 {[%clk 01:13:36]} {[%emt 00:04:33]} Bxc4 {[%clk
01:12:19]} {[%emt 00:01:52]} 14. Qxc4 {[%clk 01:13:54]} {[%emt 00:00:11]} Be7
{[%clk 01:12:16]} {[%emt 00:00:32]} 15. d4 {[%clk 00:59:54]} {[%emt 00:14:32]}
Rc8 {[%clk 01:10:15]} {[%emt 00:02:30]} 16. Qd3 {[%clk 00:57:08]} {[%emt
00:03:15]} d5 {[%clk 01:06:26]} {[%emt 00:04:19]} 17. exd6 {[%clk 00:55:41]}
{[%emt 00:01:57]} Qxd6 {[%clk 01:06:47]} {[%emt 00:00:09]} 18. d5 {[%clk
00:48:47]} {[%emt 00:07:24]} O-O {[%clk 01:06:40]} {[%emt 00:00:37]} 19. Rfd1
{[%clk 00:41:24]} {[%emt 00:07:54]} Qxd5 {[%clk 01:05:05]} {[%emt 00:02:06]} 20.
Qe2 {[%clk 00:36:09]} {[%emt 00:05:44]} Qf5 {[%clk 01:01:03]} {[%emt 00:04:32]}
21. Qb2 {[%clk 00:34:54]} {[%emt 00:01:45]} Bf6 {[%clk 00:54:46]} {[%emt
00:06:46]} 22. Bxf6 {[%clk 00:35:05]} {[%emt 00:00:20]} gxf6 {[%clk 00:55:11]}
{[%emt 00:00:05]} 23. Qxb6 {[%clk 00:35:10]} {[%emt 00:00:25]} Ne5 {[%clk
00:46:52]} {[%emt 00:08:48]} 24. Nxe5 {[%clk 00:30:15]} {[%emt 00:05:26]} Qxe5
{[%clk 00:46:43]} {[%emt 00:00:38]} 25. Rac1 {[%clk 00:29:52]} {[%emt
00:00:53]} Rxc1 {[%clk 00:44:40]} {[%emt 00:02:34]} 26. Rxc1 {[%clk 00:30:16]}
{[%emt 00:00:06]} Rb8 {[%clk 00:45:01]} {[%emt 00:00:08]} 27. Qa7 {[%clk
00:28:54]} {[%emt 00:01:53]} Rb3 {[%clk 00:41:19]} {[%emt 00:04:12]} 28. Qe7
{[%clk 00:27:24]} {[%emt 00:02:00]} Qc3 {[%clk 00:39:36]} {[%emt 00:02:13]} 29.
Qd8+ {[%clk 00:22:33]} {[%emt 00:05:21]} Kg7 {[%clk 00:39:57]} {[%emt
00:00:09]} 30. Qd1 {[%clk 00:22:48]} {[%emt 00:00:15]} Qd3 {[%clk 00:39:11]}
{[%emt 00:01:15]} 31. Qxd3 {[%clk 00:19:31]} {[%emt 00:03:47]} Rxd3 {[%clk
00:39:27]} {[%emt 00:00:14]} 32. Ra1 {[%clk 00:19:40]} {[%emt 00:00:22]} a4
{[%clk 00:39:47]} {[%emt 00:00:10]} 33. Kf1 {[%clk 00:18:05]} {[%emt 00:02:04]}
e5 {[%clk 00:40:04]} {[%emt 00:00:14]} 34. Ke2 {[%clk 00:17:58]} {[%emt
00:00:37]} Rb3 {[%clk 00:39:50]} {[%emt 00:00:44]} 35. Ra2 {[%clk 00:17:22]}
{[%emt 00:01:06]} f5 {[%clk 00:40:13]} {[%emt 00:00:07]} 36. Kd2 {[%clk
00:14:56]} {[%emt 00:02:56]} Kg6 {[%clk 00:39:13]} {[%emt 00:01:30]} 37. Kc1
{[%clk 00:13:49]} {[%emt 00:01:37]} e4 {[%clk 00:37:10]} {[%emt 00:02:32]} 38.
Rd2 {[%clk 00:12:27]} {[%emt 00:01:52]} Rxa3 {[%clk 00:36:42]} {[%emt
00:00:58]} 39. Kb2 {[%clk 00:10:39]} {[%emt 00:02:18]} Rd3 {[%clk 00:35:44]}
{[%emt 00:01:28]} 40. Rc2 {[%clk 00:08:48]} {[%emt 00:02:22]} Kg5 {[%clk
00:35:44]} {[%emt 00:00:29]} 41. Kc1 {[%clk 00:07:14]} {[%emt 00:02:05]} h5
{[%clk 00:28:49]} {[%emt 00:07:23]} 42. Rc4 {[%clk 00:06:36]} {[%emt 00:01:09]}
a3 {[%clk 00:29:05]} {[%emt 00:00:15]} 43. Kc2 {[%clk 00:06:36]} {[%emt
00:00:30]} h4 {[%clk 00:21:01]} {[%emt 00:08:34]} 44. h3 {[%clk 00:02:48]}
{[%emt 00:04:17]} Kf4 {[%clk 00:18:55]} {[%emt 00:02:36]} 45. Rc5 {[%clk
00:02:36]} {[%emt 00:00:42]} a2 {[%clk 00:15:36]} {[%emt 00:03:49]} 46. Ra5
{[%clk 00:02:48]} {[%emt 00:00:18]} Rd8 {[%clk 00:16:02]} {[%emt 00:00:05]} 47.
Rxa2 {[%clk 00:01:54]} {[%emt 00:01:24]} Rg8 {[%clk 00:16:24]} {[%emt
00:00:07]} 48. Kd2 {[%clk 00:01:52]} {[%emt 00:00:33]} Rxg2 {[%clk 00:16:46]}
{[%emt 00:00:07]} 49. Ke2 {[%clk 00:01:56]} {[%emt 00:00:27]} Rh2 {[%clk
00:15:26]} {[%emt 00:01:49]} 50. Ra3 {[%clk 00:01:44]} {[%emt 00:00:43]} Rh1
{[%clk 00:15:50]} {[%emt 00:00:05]} 51. Rb3 {[%clk 00:01:55]} {[%emt 00:00:20]}
Ra1 {[%clk 00:16:13]} {[%emt 00:00:06]} 52. Rc3 {[%clk 00:01:41]} {[%emt
00:00:44]} Rh1 {[%clk 00:14:31]} {[%emt 00:02:12]} 53. Rb3 {[%clk 00:02:04]}
{[%emt 00:00:09]} Kg5 {[%clk 00:14:51]} {[%emt 00:00:09]} 54. Ra3 {[%clk
00:02:02]} {[%emt 00:00:32]} f4 {[%clk 00:15:16]} {[%emt 00:00:04]} 55. Rb3
{[%clk 00:02:09]} {[%emt 00:00:24]} f3+ {[%clk 00:13:24]} {[%emt 00:02:22]} 56.
Ke3 {[%clk 00:02:23]} {[%emt 00:00:15]} Re1+ {[%clk 00:13:47]} {[%emt
00:00:07]} 57. Kd4 {[%clk 00:01:44]} {[%emt 00:01:10]} Kf4 {[%clk 00:13:24]}
{[%emt 00:00:52]} 58. Rb7 {[%clk 00:01:30]} {[%emt 00:00:45]} Rd1+ {[%clk
00:13:41]} {[%emt 00:00:13]} 59. Kc3 {[%clk 00:01:53]} {[%emt 00:00:08]} f5
{[%clk 00:14:01]} {[%emt 00:00:09]} 60. Rh7 {[%clk 00:01:49]} {[%emt 00:00:33]}
Rf1 {[%clk 00:14:16]} {[%emt 00:00:15]} 61. Rxh4+ {[%clk 00:02:04]} {[%emt
00:00:16]} Kg5 {[%clk 00:14:42]} {[%emt 00:00:03]} 62. Rh8 {[%clk 00:02:26]}
{[%emt 00:00:09]} Rxf2 {[%clk 00:15:07]} {[%emt 00:00:05]} 63. Kd4 {[%clk
00:01:57]} {[%emt 00:00:59]} Kf4 {[%clk 00:15:17]} {[%emt 00:00:19]} 64. Rh4
{[%clk 00:00:57]} {[%emt 00:01:31]} Kg3 {[%clk 00:15:36]} {[%emt 00:00:10]} 65.
Rh8 {[%clk 00:01:20]} {[%emt 00:00:08]} Rh2 {[%clk 00:15:48]} {[%emt 00:00:17]}
66. Ke3 {[%clk 00:01:30]} {[%emt 00:00:20]} Re2+ {[%clk 00:15:40]} {[%emt
00:00:38]} 67. Kd4 {[%clk 00:01:44]} {[%emt 00:00:16]} f2 {[%clk 00:15:59]}
{[%emt 00:00:10]} 68. Rg8+ {[%clk 00:00:55]} {[%emt 00:01:20]} Kf4 {[%clk
00:16:01]} {[%emt 00:00:27]} 69. Rg2 {[%clk 00:00:34]} {[%emt 00:00:52]} f1=Q
{[%clk 00:16:03]} {[%emt 00:00:28]} 0-1

[Event "32nd NATO Chess Championship"]
[Site "Tartu, Estonia"]
[Date "2022.06.30"]
[Round "5.9"]
[White "Bohn, Ulrich"]
[Black "Peraino, Andrew"]
[Result "1-0"]
[TimeControl "90 min + 30 sec increment from move one"]
[WhiteFideId "4656105"]
[BlackFideId "30936187"]
[WhiteElo "2168"]
[BlackElo "1940"]

1. d4 {[%clk 01:30:47]} {[%emt 00:00:12]} d6 {[%clk 01:30:11]} {[%emt
00:00:48]} 2. e4 {[%clk 01:30:28]} {[%emt 00:00:49]} Nf6 {[%clk 01:30:34]}
{[%emt 00:00:09]} 3. Nc3 {[%clk 01:30:48]} {[%emt 00:00:10]} g6 {[%clk
01:30:58]} {[%emt 00:00:06]} 4. Bf4 {[%clk 01:30:53]} {[%emt 00:00:25]} a6
{[%clk 01:31:19]} {[%emt 00:00:09]} 5. Be2 {[%clk 01:21:56]} {[%emt 00:09:27]}
b5 {[%clk 01:30:31]} {[%emt 00:01:19]} 6. e5 {[%clk 01:21:36]} {[%emt
00:00:49]} b4 {[%clk 01:19:52]} {[%emt 00:11:08]} 7. exf6 {[%clk 01:09:23]}
{[%emt 00:12:44]} bxc3 {[%clk 01:20:02]} {[%emt 00:00:20]} 8. fxe7 {[%clk
01:09:17]} {[%emt 00:00:36]} Qxe7 {[%clk 01:20:13]} {[%emt 00:00:19]} 9. bxc3
{[%clk 01:09:18]} {[%emt 00:00:29]} Bb7 {[%clk 01:20:10]} {[%emt 00:00:33]} 10.
Kf1 {[%clk 01:08:56]} {[%emt 00:00:53]} Bg7 {[%clk 00:58:27]} {[%emt 00:22:13]}
11. Bf3 {[%clk 01:08:38]} {[%emt 00:00:47]} Bc6 {[%clk 00:58:02]} {[%emt
00:00:55]} 12. Bxc6+ {[%clk 00:59:10]} {[%emt 00:09:58]} Nxc6 {[%clk 00:58:21]}
{[%emt 00:00:11]} 13. Qd3 {[%clk 00:47:20]} {[%emt 00:12:20]} O-O {[%clk
00:57:30]} {[%emt 00:01:20]} 14. Re1 {[%clk 00:27:51]} {[%emt 00:20:00]} Qd7
{[%clk 00:54:32]} {[%emt 00:03:29]} 15. g3 {[%clk 00:28:12]} {[%emt 00:00:08]}
Na5 {[%clk 00:50:39]} {[%emt 00:04:23]} 16. Kg2 {[%clk 00:24:30]} {[%emt
00:04:12]} Qc6+ {[%clk 00:49:09]} {[%emt 00:02:00]} 17. Qf3 {[%clk 00:19:24]}
{[%emt 00:05:36]} Qc4 {[%clk 00:45:15]} {[%emt 00:04:23]} 18. Ne2 {[%clk
00:15:54]} {[%emt 00:04:00]} Rab8 {[%clk 00:44:46]} {[%emt 00:01:00]} 19. Nc1
{[%clk 00:14:10]} {[%emt 00:02:14]} Rfe8 {[%clk 00:33:16]} {[%emt 00:11:59]} 20.
Nb3 {[%clk 00:11:40]} {[%emt 00:03:01]} Nc6 {[%clk 00:32:46]} {[%emt 00:01:01]}
21. Qd3 {[%clk 00:10:05]} {[%emt 00:02:04]} Qd5+ {[%clk 00:32:30]} {[%emt
00:00:46]} 22. f3 {[%clk 00:10:11]} {[%emt 00:00:24]} Qb5 {[%clk 00:23:34]}
{[%emt 00:09:26]} 23. Kf2 {[%clk 00:08:17]} {[%emt 00:02:24]} Qxd3 {[%clk
00:18:57]} {[%emt 00:05:07]} 24. cxd3 {[%clk 00:08:39]} {[%emt 00:00:08]} a5
{[%clk 00:18:56]} {[%emt 00:00:31]} 25. Rxe8+ {[%clk 00:07:55]} {[%emt
00:01:14]} Rxe8 {[%clk 00:19:16]} {[%emt 00:00:09]} 26. Rb1 {[%clk 00:07:37]}
{[%emt 00:00:49]} Rb8 {[%clk 00:18:48]} {[%emt 00:00:57]} 27. Nd2 {[%clk
00:08:06]} {[%emt 00:00:02]} Rxb1 28. Nxb1 {[%clk 00:08:35]} Ne7 {[%clk
00:19:16]} {[%emt 00:00:08]} 29. Na3 {[%clk 00:07:20]} {[%emt 00:01:45]} Nd5
{[%clk 00:19:17]} {[%emt 00:00:28]} 30. Bd2 {[%clk 00:07:34]} {[%emt 00:00:17]}
Kf8 {[%clk 00:18:47]} {[%emt 00:01:00]} 31. Nc2 {[%clk 00:07:19]} {[%emt
00:00:45]} c5 {[%clk 00:15:30]} {[%emt 00:03:47]} 32. dxc5 {[%clk 00:06:51]}
{[%emt 00:00:57]} dxc5 {[%clk 00:13:13]} {[%emt 00:02:48]} 33. c4 {[%clk
00:07:12]} {[%emt 00:00:09]} Nb4 {[%clk 00:13:36]} {[%emt 00:00:07]} 34. Nxb4
{[%clk 00:07:27]} {[%emt 00:00:15]} cxb4 {[%clk 00:13:12]} {[%emt 00:00:54]} 35.
Ke3 {[%clk 00:07:50]} {[%emt 00:00:06]} Ke8 {[%clk 00:12:15]} {[%emt 00:01:28]}
36. d4 {[%clk 00:08:12]} {[%emt 00:00:08]} Kd7 {[%clk 00:12:22]} {[%emt
00:00:23]} 37. Kd3 {[%clk 00:08:37]} {[%emt 00:00:05]} Kd6 {[%clk 00:10:24]}
{[%emt 00:02:27]} 38. g4 {[%clk 00:07:52]} {[%emt 00:01:16]} f5 {[%clk
00:10:03]} {[%emt 00:00:50]} 39. g5 {[%clk 00:07:00]} {[%emt 00:01:23]} Kc6
{[%clk 00:09:07]} {[%emt 00:01:26]} 40. Be1 {[%clk 00:06:25]} {[%emt 00:01:05]}
h6 {[%clk 00:04:41]} {[%emt 00:04:56]} 41. gxh6 {[%clk 00:03:34]} {[%emt
00:03:21]} Bxh6 {[%clk 00:05:02]} {[%emt 00:00:09]} 42. Bg3 {[%clk 00:04:03]}
Bg7 {[%clk 00:03:43]} {[%emt 00:01:50]} 43. Bf2 {[%clk 00:04:28]} {[%emt
00:00:05]} Bf6 {[%clk 00:03:23]} {[%emt 00:00:51]} 44. Kc2 {[%clk 00:02:50]}
{[%emt 00:02:07]} a4 {[%clk 00:02:19]} {[%emt 00:01:33]} 45. Kd3 {[%clk
00:03:05]} {[%emt 00:00:16]} Be7 {[%clk 00:02:03]} {[%emt 00:00:46]} 46. Bg3
{[%clk 00:03:16]} {[%emt 00:00:18]} Bf6 {[%clk 00:01:17]} {[%emt 00:01:17]} 47.
Be5 {[%clk 00:03:05]} {[%emt 00:00:40]} Bxe5 {[%clk 00:01:30]} {[%emt
00:00:18]} 48. dxe5 {[%clk 00:03:33]} {[%emt 00:00:01]} f4 {[%clk 00:01:44]}
{[%emt 00:00:17]} 49. h4 {[%clk 00:01:16]} {[%emt 00:02:47]} Kc5 {[%clk
00:01:51]} {[%emt 00:00:24]} 50. e6 {[%clk 00:01:33]} {[%emt 00:00:12]} Kd6
{[%clk 00:02:10]} {[%emt 00:00:11]} 51. c5+ {[%clk 00:02:00]} {[%emt 00:00:03]}
Kxe6 {[%clk 00:02:27]} {[%emt 00:00:13]} 52. Kc4 {[%clk 00:02:24]} {[%emt
00:00:06]} a3 {[%clk 00:00:34]} {[%emt 00:02:23]} 53. Kxb4 {[%clk 00:02:22]}
{[%emt 00:00:32]} Kd7 {[%clk 00:00:57]} {[%emt 00:00:07]} 54. Kb5 {[%clk
00:02:19]} {[%emt 00:00:32]} Kc7 {[%clk 00:01:13]} {[%emt 00:00:15]} 55. c6
{[%clk 00:02:38]} {[%emt 00:00:11]} Kc8 {[%clk 00:01:31]} {[%emt 00:00:12]} 56.
Kc5 {[%clk 00:03:00]} {[%emt 00:00:08]} Kc7 {[%clk 00:01:57]} {[%emt 00:00:05]}
57. Kd5 {[%clk 00:03:25]} {[%emt 00:00:04]} Kc8 {[%clk 00:02:13]} {[%emt
00:00:14]} 58. Ke6 {[%clk 00:03:49]} {[%emt 00:00:06]} Kc7 {[%clk 00:02:36]}
{[%emt 00:00:07]} 59. Kf6 {[%clk 00:04:13]} {[%emt 00:00:06]} Kxc6 {[%clk
00:01:53]} {[%emt 00:01:13]} 60. Kxg6 {[%clk 00:04:38]} {[%emt 00:00:05]} Kd5
{[%clk 00:02:03]} {[%emt 00:00:20]} 61. Kf5 {[%clk 00:04:56]} {[%emt 00:00:12]}
Kd4 {[%clk 00:02:11]} {[%emt 00:00:22]} 62. Kxf4 {[%clk 00:05:15]} {[%emt
00:00:11]} Kc3 {[%clk 00:02:34]} {[%emt 00:00:07]} 63. h5 {[%clk 00:05:41]}
{[%emt 00:00:03]} Kb2 {[%clk 00:02:59]} {[%emt 00:00:06]} 64. h6 {[%clk
00:06:08]} {[%emt 00:00:03]} Kxa2 {[%clk 00:03:23]} {[%emt 00:00:06]} 65. h7
{[%clk 00:06:34]} {[%emt 00:00:03]} Kb1 {[%clk 00:03:42]} {[%emt 00:00:12]} 66.
h8=Q {[%clk 00:06:58]} {[%emt 00:00:05]} a2 {[%clk 00:04:05]} {[%emt 00:00:07]}
67. Ke4 {[%clk 00:07:16]} {[%emt 00:00:11]} Kc2 {[%clk 00:03:46]} {[%emt
00:00:50]} 68. Qa1 {[%clk 00:07:41]} {[%emt 00:00:05]} 1-0

[Event "32nd NATO Chess Championship"]
[Site "Tartu, Estonia"]
[Date "2022.06.30"]
[Round "5.10"]
[White "Pedersen, Finn"]
[Black "Balmaceda, Enrico"]
[Result "1/2-1/2"]
[TimeControl "90 min + 30 sec increment from move one"]
[WhiteTitle "FM"]
[WhiteFideId "1400762"]
[BlackFideId "2089785"]
[WhiteElo "2300"]
[BlackElo "1958"]

1. Nf3 {[%clk 01:30:49]} {[%emt 00:00:10]} d5 {[%clk 01:30:39]} {[%emt
00:00:22]} 2. d4 {[%clk 01:31:05]} {[%emt 00:00:14]} Nf6 {[%clk 01:30:46]}
{[%emt 00:00:23]} 3. Bf4 {[%clk 01:31:11]} {[%emt 00:00:24]} g6 {[%clk
01:29:17]} {[%emt 00:02:01]} 4. e3 {[%clk 01:30:48]} {[%emt 00:00:52]} Bg7
{[%clk 01:29:32]} {[%emt 00:00:17]} 5. Nbd2 {[%clk 01:31:04]} {[%emt 00:00:13]}
O-O {[%clk 01:29:32]} {[%emt 00:00:31]} 6. h3 {[%clk 01:31:17]} {[%emt
00:00:15]} b6 {[%clk 01:28:42]} {[%emt 00:01:21]} 7. c3 {[%clk 01:31:03]}
{[%emt 00:00:43]} Nbd7 {[%clk 01:27:36]} {[%emt 00:01:37]} 8. Bd3 {[%clk
01:29:35]} {[%emt 00:01:57]} Bb7 {[%clk 01:27:56]} {[%emt 00:00:12]} 9. Qb1
{[%clk 01:29:50]} {[%emt 00:00:13]} c5 {[%clk 01:27:43]} {[%emt 00:00:45]} 10.
O-O {[%clk 01:30:00]} {[%emt 00:00:19]} Re8 {[%clk 01:21:44]} {[%emt 00:06:29]}
11. Bh2 {[%clk 01:27:05]} {[%emt 00:03:25]} Rc8 {[%clk 01:06:46]} {[%emt
00:15:28]} 12. a4 {[%clk 01:26:25]} {[%emt 00:01:09]} a6 {[%clk 01:06:22]}
{[%emt 00:00:55]} 13. Re1 {[%clk 01:25:11]} {[%emt 00:01:42]} Nf8 {[%clk
00:57:37]} {[%emt 00:09:16]} 14. Ne5 {[%clk 01:19:19]} {[%emt 00:06:22]} N6d7
{[%clk 00:55:27]} {[%emt 00:02:41]} 15. Nxd7 {[%clk 01:18:41]} {[%emt
00:01:08]} Nxd7 {[%clk 00:51:49]} {[%emt 00:04:08]} 16. f4 {[%clk 01:12:20]}
{[%emt 00:06:51]} f5 {[%clk 00:47:20]} {[%emt 00:05:00]} 17. g4 {[%clk
01:11:46]} {[%emt 00:01:02]} e6 {[%clk 00:47:32]} {[%emt 00:00:19]} 18. g5
{[%clk 01:09:19]} {[%emt 00:02:56]} Kf7 {[%clk 00:42:06]} {[%emt 00:05:58]} 19.
Nf3 {[%clk 01:09:02]} {[%emt 00:00:45]} Rh8 {[%clk 00:41:24]} {[%emt 00:01:13]}
20. Bg3 {[%clk 01:07:29]} {[%emt 00:02:03]} Qc7 {[%clk 00:33:41]} {[%emt
00:08:13]} 21. Kg2 {[%clk 01:05:30]} {[%emt 00:02:29]} c4 {[%clk 00:27:30]}
{[%emt 00:06:41]} 22. Be2 {[%clk 01:05:30]} {[%emt 00:00:30]} b5 {[%clk
00:27:40]} {[%emt 00:00:21]} 23. b4 {[%clk 00:58:44]} {[%emt 00:07:16]} Ra8
{[%clk 00:23:20]} {[%emt 00:04:50]} 24. h4 {[%clk 00:58:21]} {[%emt 00:00:52]}
Bc6 {[%clk 00:23:04]} {[%emt 00:00:46]} 25. a5 {[%clk 00:55:35]} {[%emt
00:03:16]} Rag8 {[%clk 00:18:34]} {[%emt 00:05:00]} 26. h5 {[%clk 00:54:39]}
{[%emt 00:01:25]} Ke8 {[%clk 00:12:06]} {[%emt 00:06:59]} 27. Rh1 {[%clk
00:54:43]} {[%emt 00:00:26]} Kd8 {[%clk 00:11:36]} {[%emt 00:01:01]} 28. Nh4
{[%clk 00:52:58]} {[%emt 00:02:13]} Bf8 {[%clk 00:11:19]} {[%emt 00:00:48]} 29.
Rh3 {[%clk 00:48:40]} {[%emt 00:04:47]} Bd6 {[%clk 00:11:09]} {[%emt 00:00:41]}
30. hxg6 {[%clk 00:47:11]} {[%emt 00:01:58]} hxg6 {[%clk 00:11:00]} {[%emt
00:00:40]} 31. Qh1 {[%clk 00:46:11]} {[%emt 00:01:27]} Nf8 {[%clk 00:10:47]}
{[%emt 00:00:46]} 32. Nf3 {[%clk 00:45:54]} {[%emt 00:00:47]} Rxh3 {[%clk
00:09:03]} {[%emt 00:02:14]} 33. Qxh3 {[%clk 00:46:17]} {[%emt 00:00:06]} Qh7
{[%clk 00:09:06]} {[%emt 00:00:28]} 34. Nh4 {[%clk 00:44:50]} {[%emt 00:01:56]}
Rh8 {[%clk 00:08:10]} {[%emt 00:01:27]} 35. Rh1 {[%clk 00:45:05]} {[%emt
00:00:14]} Be8 {[%clk 00:08:14]} {[%emt 00:00:27]} 36. Bf3 {[%clk 00:45:23]}
{[%emt 00:00:11]} Qg8 {[%clk 00:08:05]} {[%emt 00:00:40]} 37. Kf2 {[%clk
00:45:37]} {[%emt 00:00:16]} Rh7 {[%clk 00:08:12]} {[%emt 00:00:23]} 38. Qg2
{[%clk 00:45:44]} {[%emt 00:00:22]} Qh8 {[%clk 00:08:04]} {[%emt 00:00:38]} 39.
Bxd5 {[%clk 00:44:04]} {[%emt 00:02:11]} exd5 {[%clk 00:08:32]} {[%emt
00:00:02]} 40. Qxd5 {[%clk 00:44:24]} {[%emt 00:00:09]} Kc7 {[%clk 00:08:17]}
{[%emt 00:00:46]} 41. Qa8 {[%clk 00:44:39]} {[%emt 00:00:15]} Bc6 {[%clk
00:07:06]} {[%emt 00:01:41]} 42. Qa7+ {[%clk 00:44:51]} {[%emt 00:00:18]} Kc8
{[%clk 00:07:01]} {[%emt 00:00:35]} 43. Qxa6+ {[%clk 00:44:02]} {[%emt
00:01:20]} Bb7 {[%clk 00:06:59]} {[%emt 00:00:32]} 44. Qxd6 {[%clk 00:44:01]}
{[%emt 00:00:30]} Bxh1 {[%clk 00:07:04]} {[%emt 00:00:25]} 45. Qc5+ {[%clk
00:41:12]} {[%emt 00:03:19]} Kd8 {[%clk 00:05:28]} {[%emt 00:02:05]} 46. Qb6+
{[%clk 00:40:59]} {[%emt 00:00:44]} Kc8 {[%clk 00:05:18]} {[%emt 00:00:40]} 47.
Qc5+ {[%clk 00:40:23]} {[%emt 00:01:06]} Kd8 {[%clk 00:05:01]} {[%emt
00:00:47]} 48. Qb6+ {[%clk 00:37:57]} {[%emt 00:02:56]} Kc8 {[%clk 00:05:19]}
{[%emt 00:00:12]} 49. Qc5+ {[%clk 00:37:31]} {[%emt 00:00:56]} 1/2-1/2